bitfinex-derivatives/quotes_BNBF0:USTF0_20250710
["timestamp","ask_amount","ask_price","bid_price","bid_amount"]
[1752134308570,0.98447417,671.89,671.45,1.35]
[1752134308774,0.98447417,671.88,671.45,1.35]
[1752134308974,0.98447417,671.87,671.45,1.35]
[1752134309175,0.98447417,671.86,671.45,1.35]
[1752134309375,0.98447417,671.85,671.45,1.35]
[1752134309576,0.98447417,671.84,671.45,1.35]
[1752134309773,0.98447417,671.89,671.45,1.35]
[1752134309977,1.67312601,671.9,671.45,1.35]
[1752134309978,0.98447417,671.88,671.45,1.35]
[1752134310177,0.98447417,671.87,671.45,1.35]
[1752134310381,0.98447417,671.86,671.45,1.35]
[1752134310674,0.98447417,671.85,671.45,1.35]
[1752134310879,0.98447417,671.84,671.45,1.35]
[1752134311078,0.98447417,671.89,671.45,1.35]
[1752134311278,0.98550211,671.88,671.45,1.35]
[1752134311476,0.98550211,671.87,671.45,1.35]
[1752134311676,0.98550211,671.86,671.45,1.35]
[1752134311874,0.98550211,671.85,671.45,1.35]
[1752134312076,0.98550211,671.84,671.45,1.35]
[1752134312281,0.98550211,671.89,671.45,1.35]
[1752134312477,0.98550211,671.88,671.45,1.35]
[1752134312675,0.98550211,671.87,671.45,1.35]
[1752134312875,0.98550211,671.86,671.45,1.35]
[1752134313177,0.98550211,671.85,671.45,1.35]
[1752134313375,0.98550211,671.9,671.45,1.35]
[1752134313575,0.98550211,671.89,671.45,1.35]
[1752134313775,0.98550211,671.88,671.45,1.35]
[1752134313973,0.98550211,671.87,671.45,1.35]
[1752134314176,0.98550211,671.86,671.45,1.35]
[1752134314376,0.98550211,671.85,671.45,1.35]
[1752134314579,0.98550211,671.9,671.45,1.35]
[1752134314783,0.98550211,671.89,671.45,1.35]
[1752134314980,0.98550211,671.88,671.45,1.35]
[1752134315177,0.98550211,671.87,671.45,1.35]
[1752134315380,0.98550211,671.86,671.43,1.67357557]
[1752134315580,0.98550211,671.85,671.43,1.67357557]
[1752134315776,0.98550211,671.9,671.43,1.67357557]
[1752134316076,0.98550211,671.89,671.43,1.67357557]
[1752134316275,0.98550211,671.88,671.43,1.67357557]
[1752134316479,0.98550211,671.87,671.41,1.67357557]
[1752134316675,0.98550211,671.86,671.41,1.67357557]
[1752134316876,0.98550211,671.85,671.41,1.67357557]
[1752134317078,0.98550211,671.9,671.42,1.67357557]
[1752134317381,0.98550211,671.89,671.42,1.67357557]
[1752134317582,0.98550211,671.88,671.42,1.67357557]
[1752134317881,0.98550211,671.87,671.42,1.67357557]
[1752134318078,0.98550211,671.86,671.42,1.67357557]
[1752134318284,0.98550211,671.85,671.43,1.37]
[1752134318478,0.98550211,671.9,671.43,1.37]
[1752134318681,0.98550211,671.95,671.43,1.37]
[1752134318881,0.98550211,671.94,671.43,1.37]
[1752134319083,0.98550211,671.93,671.43,1.37]
[1752134319384,0.98550211,671.92,671.43,1.37]
[1752134319679,0.98550211,671.91,671.43,1.37]
[1752134319880,0.98550211,671.9,671.43,1.37]
[1752134320085,0.98550211,671.95,671.43,1.37]
[1752134320281,0.98550211,671.94,671.43,1.37]
[1752134320481,0.98550211,671.93,671.43,1.37]
[1752134320686,0.98550211,671.92,671.43,1.37]
[1752134320884,0.98550211,671.91,671.43,1.37]
[1752134321086,0.98550211,671.9,671.43,1.37]
[1752134321386,0.98550211,671.95,671.43,1.37]
[1752134321586,0.98550211,671.94,671.43,1.37]
[1752134321783,0.98550211,671.93,671.43,1.37]
[1752134321988,0.98550211,671.92,671.43,1.37]
[1752134322189,0.98550211,671.91,671.43,1.37]
[1752134322392,0.98550211,671.9,671.43,1.37]
[1752134322589,0.98550211,671.95,671.43,1.37]
[1752134322885,0.98550211,671.94,671.43,1.37]
[1752134323089,0.98550211,671.93,671.43,1.37]
[1752134323288,0.98550211,671.92,671.43,1.37]
[1752134323490,0.98550211,671.91,671.43,1.37]
[1752134323790,0.98539262,671.9,671.43,1.37]
[1752134324085,0.98539262,671.95,671.43,1.37]
[1752134324289,0.98539262,671.94,671.43,1.37]
[1752134324487,0.98539262,671.93,671.43,1.37]
[1752134324786,0.98539262,671.92,671.43,1.37]
[1752134324991,1.93219337,671.96,671.43,1.37]
[1752134324992,0.98539262,671.91,671.43,1.37]
[1752134325186,0.98539262,671.9,671.43,1.37]
[1752134325387,0.98539262,671.95,671.43,1.37]
[1752134325585,0.98539262,671.94,671.43,1.37]
[1752134325790,0.98539262,671.93,671.43,1.37]
[1752134325990,0.98539262,671.92,671.43,1.37]
[1752134326193,0.98539262,671.91,671.43,1.37]
[1752134326386,0.98539262,671.9,671.43,1.37]
[1752134326586,0.98539262,671.89,671.43,1.37]
[1752134326791,0.98539262,671.94,671.43,1.37]
[1752134326990,0.98539262,671.93,671.43,1.37]
[1752134327290,0.98539262,671.92,671.43,1.37]
[1752134327488,0.98539262,671.91,671.43,1.37]
[1752134327688,0.98539262,671.9,671.43,1.37]
[1752134327897,0.98539262,671.89,671.43,1.37]
[1752134328093,0.98539262,671.94,671.43,1.37]
[1752134328288,1.67312601,671.91,671.43,1.37]
[1752134328488,0.98539262,671.9,671.43,1.37]
[1752134328692,0.98539262,671.89,671.43,1.37]
[1752134328891,0.98539262,671.88,671.43,1.37]
[1752134329093,0.98539262,671.92,671.43,1.37]
[1752134329294,0.98539262,671.91,671.43,1.37]
[1752134329488,0.98539262,671.9,671.43,1.37]
[1752134329687,1.67312601,671.95,671.43,1.37]
[1752134329688,0.98539262,671.89,671.43,1.37]
[1752134329886,0.98539262,671.94,671.43,1.37]
[1752134330086,0.98539262,671.93,671.43,1.37]
[1752134330288,0.98539262,671.92,671.43,1.37]
[1752134330488,0.98539262,671.91,671.43,1.37]
[1752134330693,0.98539262,671.9,671.43,1.37]
[1752134330993,0.98539262,671.89,671.43,1.37]
[1752134331188,0.98539262,671.88,671.43,1.37]
[1752134331493,0.98539262,671.87,671.43,1.37]
[1752134331692,0.98539262,671.92,671.43,1.37]
[1752134331893,0.98539262,671.91,671.43,1.37]
[1752134332093,0.98539262,671.9,671.43,1.37]
[1752134332294,0.98539262,671.89,671.43,1.37]
[1752134332489,0.98539262,671.88,671.43,1.37]
[1752134332688,0.98539262,671.87,671.43,1.37]
[1752134332891,0.98539262,671.92,671.43,1.37]
[1752134333092,0.98539262,671.91,671.43,1.37]
[1752134333395,0.98539262,671.9,671.43,1.37]
[1752134333591,0.98539262,671.89,671.43,1.37]
[1752134333792,0.98539262,671.88,671.43,1.37]
[1752134333996,0.98539262,671.87,671.43,1.37]
[1752134334196,0.98539262,671.92,671.43,1.37]
[1752134334396,0.98539262,671.91,671.43,1.37]
[1752134334597,0.98539262,671.9,671.43,1.37]
[1752134334891,1.67312601,671.93,671.43,1.37]
[1752134334892,0.98539262,671.89,671.43,1.37]
[1752134335097,0.98539262,671.88,671.43,1.37]
[1752134335295,0.98539262,671.87,671.43,1.37]
[1752134335507,0.98539262,671.92,671.43,1.37]
[1752134335701,0.98539262,671.91,671.43,1.37]
[1752134335906,0.98539262,671.9,671.43,1.37]
[1752134336108,0.98539262,671.89,671.43,1.37]
[1752134336307,0.98539262,671.88,671.43,1.37]
[1752134336506,0.98539262,671.87,671.43,1.37]
[1752134336707,0.98539262,671.92,671.43,1.37]
[1752134336906,0.98539262,671.91,671.43,1.37]
[1752134337103,0.98539262,671.9,671.43,1.37]
[1752134337307,0.98539262,671.89,671.43,1.37]
[1752134337508,0.98539262,671.88,671.43,1.37]
[1752134337807,0.98539262,671.87,671.43,1.37]
[1752134338003,0.98539262,671.86,671.43,1.37]
[1752134338207,0.98539262,671.92,671.43,1.37]
[1752134338404,0.98539262,671.91,671.43,1.37]
[1752134338603,0.98539262,671.9,671.43,1.37]
[1752134338802,0.98539262,671.92,671.43,1.37]
[1752134339007,0.98539262,671.91,671.43,1.37]
[1752134339208,0.98539262,671.9,671.43,1.37]
[1752134339407,0.98539262,671.95,671.43,1.37]
[1752134339606,0.98539262,671.94,671.43,1.37]
[1752134339807,0.98539262,671.93,671.43,1.37]
[1752134340007,0.98539262,671.92,671.43,1.37]
[1752134340206,0.98539262,671.91,671.43,1.37]
[1752134340408,0.98539262,671.9,671.43,1.37]
[1752134340710,0.98539262,671.95,671.43,1.37]
[1752134340909,0.98539262,671.94,671.43,1.37]
[1752134341210,0.98539262,671.93,671.43,1.37]
[1752134341405,0.98539262,671.92,671.43,1.37]
[1752134341608,0.98539262,671.91,671.43,1.37]
[1752134341908,0.98539262,671.9,671.43,1.37]
[1752134342106,0.98539262,671.89,671.43,1.37]
[1752134342309,0.98539262,671.94,671.43,1.37]
[1752134342608,0.98539262,671.93,671.43,1.37]
[1752134342809,0.98549615,671.92,671.43,1.37]
[1752134343010,0.98549615,671.91,671.43,1.37]
[1752134343205,0.98549615,671.9,671.43,1.37]
[1752134343408,0.98549615,671.89,671.43,1.37]
[1752134343605,0.98549615,671.94,671.43,1.37]
[1752134343805,0.98549615,671.93,671.43,1.37]
[1752134344005,0.98549615,671.92,671.43,1.37]
[1752134344209,0.98549615,671.91,671.43,1.37]
[1752134344508,0.98549615,671.9,671.43,1.37]
[1752134344709,0.98549615,671.89,671.43,1.37]
[1752134344907,0.98549615,671.94,671.43,1.37]
[1752134345106,0.98549615,671.93,671.43,1.37]
[1752134345307,0.98549615,671.92,671.43,1.37]
[1752134345511,0.98549615,671.91,671.43,1.37]
[1752134345710,0.98549615,671.9,671.43,1.37]
[1752134345910,0.9854573,671.89,671.43,1.37]
[1752134346110,0.9854573,671.94,671.43,1.37]
[1752134346410,0.9854573,671.93,671.33,1.67387381]
[1752134346610,0.9854573,671.92,671.33,1.67387381]
[1752134346808,0.9854573,671.91,671.33,1.67387381]
[1752134347008,0.9854573,671.9,671.33,1.67387381]
[1752134347208,1.67337803,671.95,671.33,1.67387381]
[1752134347209,0.9854573,671.89,671.33,1.67387381]
[1752134347415,0.9854573,671.94,671.33,1.67387381]
[1752134347609,0.9854573,671.93,671.33,1.67387381]
[1752134347814,0.9854573,671.92,671.33,1.67387381]
[1752134348011,0.9854573,671.91,671.33,1.67387381]
[1752134348316,0.9854573,671.9,671.34,1.67387381]
[1752134348512,0.9854573,671.89,671.34,1.67387381]
[1752134348815,0.9854573,671.88,671.4,1.67387381]
[1752134349014,0.9854573,671.87,671.4,1.67387381]
[1752134349213,0.9854573,671.86,671.41,1.784]
[1752134349416,0.9854573,671.85,671.41,1.784]
[1752134349615,0.9854573,671.9,671.41,1.784]
[1752134349813,0.9854573,671.89,671.41,1.784]
[1752134350017,0.9854573,671.88,671.41,1.784]
[1752134350314,0.9854573,671.87,671.41,1.784]
[1752134350519,0.9854573,671.86,671.41,1.784]
[1752134350819,0.9854573,671.9,671.41,1.784]
[1752134351116,0.9854573,671.89,671.41,1.784]
[1752134351316,0.9854573,671.88,671.41,1.784]
[1752134351514,0.9854573,671.87,671.41,1.784]
[1752134351718,0.9854573,671.86,671.41,1.784]
[1752134351918,0.9854573,671.91,671.41,1.784]
[1752134352120,0.9854573,671.9,671.41,1.784]
[1752134352317,0.9854573,671.89,671.41,1.784]
[1752134352618,0.9854573,671.88,671.41,1.784]
[1752134352821,0.9854573,671.87,671.41,1.784]
[1752134353118,0.9854573,671.86,671.41,1.784]
[1752134353425,0.9854573,671.92,671.41,1.784]
[1752134353722,0.9854573,671.91,671.41,1.784]
[1752134354021,0.9854573,671.9,671.41,1.784]
[1752134354221,0.9854573,671.89,671.41,1.784]
[1752134354417,0.9854573,671.88,671.41,1.784]
[1752134354722,1.67337803,671.93,671.41,1.784]
[1752134355018,0.98507385,671.92,671.41,1.784]
[1752134355217,0.98507385,671.91,671.41,1.784]
[1752134355418,0.98507385,671.9,671.41,1.784]
[1752134355621,0.98507385,671.89,671.41,1.784]
[1752134355820,0.98507385,671.88,671.41,1.784]
[1752134356020,0.98507385,671.87,671.41,1.784]
[1752134356220,0.98507385,671.86,671.41,1.784]
[1752134356425,0.98507385,671.91,671.41,1.784]
[1752134356624,0.98507385,671.9,671.41,1.784]
[1752134356824,0.98507385,671.89,671.41,1.784]
[1752134357022,0.98507385,671.88,671.41,1.784]
[1752134357222,0.98507385,671.87,671.41,1.784]
[1752134357421,0.98507385,671.86,671.41,1.784]
[1752134357621,0.98507385,671.85,671.41,1.784]
[1752134357825,0.98507385,671.9,671.41,1.784]
[1752134358122,0.98507385,671.89,671.41,1.784]
[1752134358328,0.98507385,671.88,671.41,1.784]
[1752134358626,0.98507385,671.87,671.41,1.784]
[1752134358824,0.98507385,671.86,671.41,1.784]
[1752134359023,0.98507385,671.85,671.41,1.784]
[1752134359227,0.98507385,671.9,671.41,1.784]
[1752134359424,0.98507385,671.89,671.41,1.784]
[1752134359628,0.98507385,671.88,671.41,1.784]
[1752134359829,0.98507385,671.87,671.41,1.784]
[1752134360026,0.98507385,671.86,671.41,1.784]
[1752134360225,0.98507385,671.85,671.41,1.784]
[1752134360430,0.98507385,671.84,671.41,3.45787381]
[1752134360729,0.98507385,671.83,671.43,1.67387381]
[1752134360927,0.98507385,671.88,671.41,1.784]
[1752134361132,0.98507385,671.87,671.41,1.784]
[1752134361432,0.98507385,671.86,671.35,1.67387381]
[1752134361625,0.98507385,671.85,671.35,1.67387381]
[1752134361827,0.98507385,671.84,671.35,1.67387381]
[1752134362130,0.98507385,671.89,671.35,1.67387381]
[1752134362331,0.98507385,671.88,671.35,1.67387381]
[1752134362627,0.98507385,671.87,671.34,1.67387381]
[1752134362831,0.98507385,671.86,671.34,1.67387381]
[1752134363127,0.98507385,671.85,671.36,1.67387381]
[1752134363332,0.98507385,671.84,671.36,1.67387381]
[1752134363532,0.98507385,671.83,671.36,1.67387381]
[1752134363728,0.98507385,671.88,671.37,1.67387381]
[1752134363928,1.67337803,671.81,671.29,1.67387381]
[1752134364128,1.67337803,671.82,671.28,1.67387381]
[1752134364328,1.67337803,671.82,671.3,1.574]
[1752134364531,1.67337803,671.83,671.3,1.574]
[1752134364733,2.65845188,671.83,671.3,1.574]
[1752134364934,1.67337803,671.83,671.3,1.574]
[1752134365134,1.67337803,671.84,671.3,1.574]
[1752134365532,0.98507385,671.83,671.3,1.574]
[1752134365736,0.98507385,671.82,671.3,1.574]
[1752134366034,0.98507385,671.81,671.3,1.574]
[1752134366233,0.98507385,671.8,671.3,1.574]
[1752134366437,0.98507385,671.79,671.3,1.574]
[1752134366636,0.98507385,671.83,671.3,1.574]
[1752134366836,0.98507385,671.82,671.3,1.574]
[1752134367034,0.98507385,671.81,671.3,1.574]
[1752134367238,0.98507385,671.83,671.3,1.574]
[1752134367438,0.98507385,671.82,671.3,1.574]
[1752134367634,0.98507385,671.81,671.3,1.574]
[1752134367935,0.98507385,671.84,671.3,1.574]
[1752134368138,0.98507385,671.83,671.3,1.574]
[1752134368338,0.98507385,671.82,671.3,1.574]
[1752134368538,0.98507385,671.84,671.3,1.574]
[1752134368738,0.98507385,671.83,671.3,1.574]
[1752134369038,0.98507385,671.82,671.3,1.574]
[1752134369246,0.98507385,671.84,671.3,1.574]
[1752134369539,0.98507385,671.83,671.3,1.574]
[1752134369734,0.98507385,671.85,671.3,1.574]
[1752134369934,0.98507385,671.84,671.3,1.574]
[1752134370238,0.98507385,671.85,671.3,1.574]
[1752134370538,5.5695244,672.95,671.3,1.574]
[1752134370539,1.67337803,671.81,671.3,1.574]
[1752134371238,1.67337803,671.82,671.3,1.574]
[1752134372238,1.67337803,671.83,671.3,1.574]
[1752134372638,1.67337803,671.82,671.3,1.574]
[1752134373141,1.67337803,671.83,671.3,1.574]
[1752134373638,1.67337803,671.8,671.3,1.574]
[1752134373940,0.98507385,671.79,671.3,1.574]
[1752134374138,1.67337803,671.81,671.3,1.574]
[1752134374439,0.98507385,671.8,671.3,1.574]
[1752134374637,0.98507385,671.79,671.3,1.574]
[1752134374841,0.98507385,671.8,671.3,1.574]
[1752134376138,1.67337803,671.82,671.3,1.574]
[1752134376338,2.65845188,671.81,671.3,1.574]
[1752134376539,0.98507385,671.8,671.3,1.574]
[1752134377242,1.67337803,671.81,671.3,1.574]
[1752134377845,1.67337803,671.83,671.3,1.574]
[1752134378044,2.65845188,671.82,671.3,1.574]
[1752134378243,1.67337803,671.83,671.3,1.574]
[1752134382248,1.67337803,671.81,671.3,1.574]
[1752134382446,1.67337803,671.8,671.3,1.574]
[1752134383543,0.98507385,671.87,671.3,1.574]
[1752134383745,0.98507385,671.86,671.3,1.574]
[1752134383946,0.98507385,671.85,671.3,1.574]
[1752134384143,0.98507385,677.41,671.3,1.574]
[1752134384548,0.98238964,681.79,671.3,1.574]
[1752134384747,0.98238964,681.78,671.3,1.574]
[1752134384947,0.98238964,681.77,671.3,1.574]
[1752134385148,0.98238964,681.76,671.3,1.574]
[1752134385444,0.98238964,681.75,671.3,1.574]
[1752134385649,0.98238964,681.74,671.3,1.574]
[1752134385945,0.98238964,681.73,671.3,1.574]
[1752134386146,0.98238964,681.72,671.3,1.574]
[1752134386449,0.98238964,681.71,671.3,1.574]
[1752134386745,0.98238964,681.7,671.3,1.574]
[1752134386945,0.98238964,681.69,671.3,1.574]
[1752134387145,0.98238964,681.68,671.3,1.574]
[1752134387345,0.98238964,681.67,671.3,1.574]
[1752134387549,0.98238964,681.66,671.3,1.574]
[1752134387846,0.98238964,681.65,671.3,1.574]
[1752134388152,1.6679586,671.84,671.3,1.574]
[1752134390349,1.6679586,671.84,671.19,1.6692767]
[1752134391053,1.6679586,671.84,671.18,1.6692767]
[1752134393254,1.6679586,671.83,671.2,1.6692767]
[1752134393652,1.6679586,671.83,671.21,1.436]
[1752134393952,1.6679586,671.81,671.23,1.6692767]
[1752134397059,3.3359173,672.07,671.21,1.436]
[1752134397060,1.6679586,671.82,671.22,1.6692767]
[1752134397557,1.6679586,671.81,671.23,1.6692767]
[1752134398361,1.6679586,671.81,671.21,1.436]
[1752134398362,1.6679586,671.86,671.21,1.436]
[1752134399459,1.6679586,671.84,671.21,1.436]
[1752134400062,5.5598623,672.91,671.21,1.436]
[1752134400666,1.667923,671.83,671.21,1.436]
[1752134401162,1.667923,671.8,671.21,1.436]
[1752134401365,1.667923,671.76,671.21,1.436]
[1752134401562,1.667923,671.65,671.21,1.436]
[1752134404968,1.667923,671.66,671.21,1.436]
[1752134405167,1.667923,671.65,671.21,1.436]
[1752134405368,1.667923,671.67,671.21,1.436]
[1752134405664,1.667923,671.68,671.21,1.436]
[1752134406169,1.667923,671.69,671.21,1.436]
[1752134406767,1.667923,671.7,671.21,1.436]
[1752134407471,1.667923,671.71,671.21,1.436]
[1752134408770,1.667923,671.7,671.21,1.436]
[1752134408969,1.667923,671.71,671.21,1.436]
[1752134409273,1.667923,671.7,671.21,1.436]
[1752134409873,1.667923,671.69,671.21,1.436]
[1752134410169,1.667923,671.68,671.21,1.436]
[1752134410374,1.667923,671.83,671.21,1.436]
[1752134410570,1.667923,671.96,671.21,1.436]
[1752134412071,0.9817947,672.1,671.21,1.436]
[1752134412274,1.668294,671.96,671.21,1.436]
[1752134412470,1.668294,671.95,671.21,1.436]
[1752134412675,1.668294,671.94,671.21,1.436]
[1752134414169,5.559745,673.1,671.21,1.436]
[1752134414170,1.668294,671.93,671.21,3.105351]
[1752134414576,1.668294,671.92,671.23,1.669351]
[1752134414775,1.668294,671.92,671.22,1.669351]
[1752134415377,1.668294,671.92,671.21,1.436]
[1752134415378,1.668294,671.93,671.21,3.105351]
[1752134415574,1.668294,671.93,671.22,1.669351]
[1752134416176,1.668294,671.92,671.23,1.669351]
[1752134416479,1.668294,671.89,671.21,1.436]
[1752134416676,1.668294,671.88,671.21,3.105351]
[1752134417279,1.668294,671.88,671.22,1.669351]
[1752134418383,1.668294,671.87,671.22,1.669351]
[1752134419581,1.668294,671.86,671.24,1.669351]
[1752134420279,1.668294,671.85,671.25,1.669351]
[1752134421382,1.668294,671.85,671.26,1.669351]
[1752134422086,1.668294,671.84,671.26,1.669351]
[1752134423189,1.668294,671.84,671.27,1.669351]
[1752134423885,1.668294,671.87,671.21,3.105351]
[1752134425387,1.668294,671.87,671.22,1.669351]
[1752134425686,1.668294,671.86,671.22,1.669351]
[1752134426084,1.668294,671.87,671.22,1.669351]
[1752134426287,1.668294,671.86,671.22,1.669351]
[1752134426682,1.668294,671.86,671.23,1.669351]
[1752134431290,1.668294,671.86,671.21,1.436]
[1752134431291,1.668294,671.8,671.32,1.669351]
[1752134431492,1.668294,671.82,671.29,1.669351]
[1752134434596,1.668294,671.82,671.28,1.669351]
[1752134435691,1.668294,671.84,671.26,1.669351]
[1752134437292,1.668294,671.84,671.25,1.669351]
[1752134440294,1.668294,671.85,671.25,1.669351]
[1752134440594,1.668294,671.84,671.25,1.669351]
[1752134440898,1.668294,671.85,671.25,1.669351]
[1752134441493,1.668294,671.84,671.26,1.669351]
[1752134441696,1.668294,671.9,671.21,1.436]
[1752134441998,1.668294,671.89,671.21,1.436]
[1752134445395,1.668294,671.9,671.21,1.436]
[1752134445596,1.668294,671.89,671.21,1.436]
[1752134448401,1.668294,671.9,671.21,1.436]
[1752134450404,1.668294,671.84,671.28,1.669351]
[1752134450805,1.668294,671.82,671.3,1.669351]
[1752134453307,1.668294,671.79,671.34,1.669351]
[1752134453503,1.668294,671.8,671.33,1.669351]
[1752134454906,1.668294,671.81,671.32,1.669351]
[1752134456005,1.668294,671.8,671.33,1.669351]
[1752134456806,1.668294,671.84,671.28,1.669351]
[1752134457006,1.668294,671.84,671.27,1.669351]
[1752134461608,1.668294,671.85,671.26,1.669351]
[1752134462409,1.668294,671.84,671.26,1.669351]
[1752134463011,1.668294,671.85,671.26,1.669351]
[1752134463415,1.668294,671.82,671.29,1.669351]
[1752134463611,1.668294,671.82,671.3,1.669351]
[1752134464314,1.668294,671.81,671.3,1.669351]
[1752134464510,5.559745,672.72,671.28,1.669351]
[1752134464511,1.668294,671.83,671.28,1.669351]
[1752134464810,1.668294,671.84,671.26,1.669351]
[1752134465008,1.668294,671.85,671.25,1.669351]
[1752134466412,0.98307172,671.99,671.06,4.296886]
[1752134466609,1.671327,671.85,671.25,1.6727593]
[1752134467008,1.671327,671.85,671.24,1.6727593]
[1752134467514,1.671327,671.85,671.25,1.6727593]
[1752134467910,1.671327,671.84,671.25,1.6727593]
[1752134468508,1.671327,671.9,671.17,1.6727593]
[1752134468711,1.671327,671.89,671.15,1.6727593]
[1752134468913,1.671327,671.87,671.14,1.6727593]
[1752134469412,1.671327,671.86,671.14,1.6727593]
[1752134470115,1.671327,671.86,671.15,2.046]
[1752134471819,1.671327,671.86,671.15,3.7187593]
[1752134472018,1.671327,671.85,671.15,3.7187593]
[1752134472824,1.671327,671.85,671.16,1.6727593]
[1752134473422,0.25912716,671.74,671.16,1.6727593]
[1752134473719,0.25912716,671.74,671.17,1.6727593]
[1752134474829,0.25912716,671.74,671.23,1.6727593]
[1752134475527,0.25912716,671.74,671.31,1.6727593]
[1752134478025,1.93045416,671.74,671.3,1.6727593]
[1752134478430,1.93045416,671.74,671.29,1.6727593]
[1752134479527,1.671327,671.73,671.3,1.6727593]
[1752134480343,1.671327,671.73,671.31,1.6727593]
[1752134483531,1.93045416,671.74,671.31,1.6727593]
[1752134485534,1.671327,671.72,671.34,1.6727593]
[1752134486537,1.671327,671.73,671.33,1.6727593]
[1752134487033,1.671327,671.72,671.34,1.6727593]
[1752134487737,1.671327,671.72,671.33,1.6727593]
[1752134488036,1.671327,671.73,671.34,1.6727593]
[1752134488932,1.671327,671.72,671.34,1.6727593]
[1752134489336,1.671327,671.73,671.34,1.6727593]
[1752134490033,1.671327,671.73,671.35,1.6727593]
[1752134490233,1.671327,671.71,671.34,1.6727593]
[1752134493234,1.671327,671.7,671.34,1.6727593]
[1752134493534,1.671327,671.7,671.35,1.6727593]
[1752134494734,1.671327,671.69,671.34,1.6727593]
[1752134494939,1.671327,671.71,671.36,1.6727593]
[1752134495338,1.671327,671.74,671.31,1.6727593]
[1752134498142,1.671327,671.74,671.3,1.6727593]
[1752134498638,1.671327,671.74,671.31,1.6727593]
[1752134500245,1.671327,671.73,671.3,1.6727593]
[1752134501539,1.671327,671.74,671.29,1.6727593]
[1752134502249,1.671327,671.76,671.26,1.6727593]
[1752134502544,1.671327,671.76,671.25,1.6727593]
[1752134503543,1.671327,671.77,671.24,1.6727593]
[1752134503742,0.25910883,671.81,671.15,2.046]
[1752134503743,1.671327,671.78,671.23,1.6727593]
[1752134503946,1.671327,671.78,671.22,1.6727593]
[1752134505243,1.671327,671.78,671.23,1.6727593]
[1752134505447,1.671327,671.78,671.15,2.046]
[1752134505448,1.671327,671.78,671.22,1.6727593]
[1752134505847,1.671327,671.79,671.23,1.6727593]
[1752134506548,0.25910883,671.81,671.19,1.6727593]
[1752134506747,0.25910883,671.81,671.18,1.6727593]
[1752134507245,0.25910883,671.81,671.19,1.6727593]
[1752134508845,0.25910883,671.81,671.21,1.6727593]
[1752134510049,0.25910883,671.81,671.22,1.6727593]
[1752134512351,0.25910883,671.81,671.24,1.6727593]
[1752134512947,0.25910883,671.81,671.25,1.6727593]
[1752134513748,1.671327,671.78,671.32,1.6727593]
[1752134516056,0.25910883,671.81,671.25,1.6727593]
[1752134516456,0.25910883,671.81,671.24,1.6727593]
[1752134522055,0.25910883,671.81,671.25,1.6727593]
[1752134522455,0.25910883,671.81,671.24,1.6727593]
[1752134525960,0.25910883,671.81,671.26,1.6727593]
[1752134526161,1.93043583,671.81,671.29,1.6727593]
[1752134526560,1.671327,671.8,671.3,1.672]
[1752134526855,1.671327,671.8,671.3,3.3447593]
[1752134527356,1.671327,671.8,671.3,1.672]
[1752134527562,0.25910883,671.81,671.3,1.672]
[1752134556893,0.25910883,671.81,671.33,1.6727593]
[1752134557694,0.25910883,671.81,671.34,1.6727593]
[1752134557990,1.671327,671.89,671.32,1.6727593]
[1752134559596,1.671327,671.9,671.32,1.6727593]
[1752134561996,1.671327,671.9,671.31,1.6727593]
[1752134562893,1.671327,671.89,671.33,1.6727593]
[1752134566500,0.259077,671.91,671.34,1.6727593]
[1752134566501,1.671327,671.88,671.34,1.6727593]
[1752134567101,1.671327,671.9,671.32,1.6727593]
[1752134567901,1.671327,671.88,671.35,1.6727593]
[1752134570000,1.671327,671.89,671.34,1.6727593]
[1752134570702,1.930404,671.91,671.36,1.6727593]